{"text_format":"1","workbook":"xlsx","n_sheets":4,"sheets":["База данных","Списки","Задание-Предложение","Лист1"],"not_rendered":{"charts":0,"images":0,"macros":1,"external_links":0,"defined_names":3,"comments":0,"pivot_tables":0},"unopened":[],"bounds":{"document_bytes":16777216,"sheet_cells":100000,"rows_first":2000,"rows_last":500,"rows_between":2000,"halvings":0,"cell_chars":16384,"cell_head_chars":4096},"cells_cut":0,"cells_raw":0,"read":"whole","date_system":"1900"}

{"sheet":"База данных","index":0,"n_rows":205,"n_cols":41,"rows_kept":205,"cut":false,"hidden":false,"merged":[[204,0,204,9],[1,11,2,11],[1,10,2,10],[1,16,1,17],[1,18,1,19],[1,1,2,1],[1,2,2,2],[1,4,2,4],[1,20,1,21],[1,22,1,23],[1,0,2,0],[1,3,2,3],[1,6,2,6],[1,7,2,7],[1,12,1,13],[1,14,1,15],[1,8,2,8],[1,9,2,9],[1,5,2,5],[1,40,2,40],[1,36,2,36],[1,37,1,39],[1,24,1,25],[1,26,1,27],[1,28,1,29],[1,30,1,31],[1,32,1,33],[1,34,1,35]]}
["Текущая дата",null,{"$f":"TODAY()","v":"2021-10-19"}]
["№ ПП","Дата","Месяц","№ \nЗаказа","№  Заказа - номер изменения","Статус","Тип товара","Ф.И.О. \nзаказчика","Дата \nначала","Дата окончания","Предоплата","Постоплата","МДФ/Фасад",null,"МДФ плоский",null,"ЛДСП",null,"Ноги",null,"Ручки",null,"ЛКМ",null,"Стекло/зеркало",null,"Столешница/фартук",null,"Карниз",null,"Декор",null,"Расходники",null,"Упаковка",null,"Неустойка","Итого по заказу",null,null,"Примечание"]
[null,null,null,null,null,null,null,null,null,null,null,null,"План","Факт","План","Факт","План","Факт","План","Факт","План","Факт","План","Факт","План","Факт","План","Факт","План","Факт","План","Факт","План","Факт","План","Факт",null,"План","Факт","Разница"]
[1,"2021-09-01",{"$f":"TEXT(B4,\"МММ.ГГГГ\")","v":"сен.2021"},"2090-345",{"$f":"D4&\" - \"&1","v":"2090-345 - 1"},"Не приступали","А","Петров А.Л.","2021-10-01","2021-10-08",null,null,null,null,null,null,null,null,null,null,null,null,null,null,null,null,null,null,null,null,null,null,null,null,null,null,null,{"$f":"M4+O4+Q4+S4+U4+W4+Y4+AA4+AC4+AE4+AG4+AI4","v":0},{"$f":"N4+P4+R4+T4+V4+X4+Z4+AB4+AD4+AF4+AH4+AJ4+AK4","v":0},{"$f":"AL4-AM4","v":0}]
[1,"2021-10-11",{"$f":"TEXT(B5,\"МММ.ГГГГ\")","v":"окт.2021"},"2090-345",{"$f":"D5&\" - \"&2","v":"2090-345 - 2"},"В работе","А","Петров А.Л.","2021-10-01","2021-10-08",null,null,null,null,null,null,null,null,null,null,null,null,null,null,null,null,null,null,null,null,null,null,null,null,null,null,null,{"$f":"M5+O5+Q5+S5+U5+W5+Y5+AA5+AC5+AE5+AG5+AI5","v":0},{"$f":"N5+P5+R5+T5+V5+X5+Z5+AB5+AD5+AF5+AH5+AJ5+AK5","v":0},{"$f":"AL5-AM5","v":0}]
[2,"2021-09-02",{"$f":"TEXT(B6,\"МММ.ГГГГ\")","v":"сен.2021"},null,null,null,null,null,null,null,null,null,null,null,null,null,null,null,null,null,null,null,null,null,null,null,null,null,null,null,null,null,null,null,null,null,null,{"$f":"M6+O6+Q6+S6+U6+W6+Y6+AA6+AC6+AE6+AG6+AI6","v":0},{"$f":"N6+P6+R6+T6+V6+X6+Z6+AB6+AD6+AF6+AH6+AJ6+AK6","v":0},{"$f":"AL6-AM6","v":0}]
[3,"2021-09-03","сен.2021",null,null,null,null,null,null,null,null,null,null,null,null,null,null,null,null,null,null,null,null,null,null,null,null,null,null,null,null,null,null,null,null,null,null,0,0,0]
[4,"2021-09-04","сен.2021",null,null,null,null,null,null,null,null,null,null,null,null,null,null,null,null,null,null,null,null,null,null,null,null,null,null,null,null,null,null,null,null,null,null,0,0,0]
[5,"2021-09-05","сен.2021",null,null,null,null,null,null,null,null,null,null,null,null,null,null,null,null,null,null,null,null,null,null,null,null,null,null,null,null,null,null,null,null,null,null,0,0,0]
[6,"2021-09-06","сен.2021",null,null,null,null,null,null,null,null,null,null,null,null,null,null,null,null,null,null,null,null,null,null,null,null,null,null,null,null,null,null,null,null,null,null,0,0,0]
[7,"2021-09-07","сен.2021",null,null,null,null,null,null,null,null,null,null,null,null,null,null,null,null,null,null,null,null,null,null,null,null,null,null,null,null,null,null,null,null,null,null,0,0,0]
[8,"2021-09-08","сен.2021",null,null,null,null,null,null,null,null,null,null,null,null,null,null,null,null,null,null,null,null,null,null,null,null,null,null,null,null,null,null,null,null,null,null,0,0,0]
[9,"2021-09-09","сен.2021",null,null,null,null,null,null,null,null,null,null,null,null,null,null,null,null,null,null,null,null,null,null,null,null,null,null,null,null,null,null,null,null,null,null,0,0,0]
[10,"2021-09-10","сен.2021",null,null,null,null,null,null,null,null,null,null,null,null,null,null,null,null,null,null,null,null,null,null,null,null,null,null,null,null,null,null,null,null,null,null,0,0,0]
[11,"2021-09-11","сен.2021",null,null,null,null,null,null,null,null,null,null,null,null,null,null,null,null,null,null,null,null,null,null,null,null,null,null,null,null,null,null,null,null,null,null,0,0,0]
[12,"2021-09-12","сен.2021",null,null,null,null,null,null,null,null,null,null,null,null,null,null,null,null,null,null,null,null,null,null,null,null,null,null,null,null,null,null,null,null,null,null,0,0,0]
[13,"2021-09-13","сен.2021",null,null,null,null,null,null,null,null,null,null,null,null,null,null,null,null,null,null,null,null,null,null,null,null,null,null,null,null,null,null,null,null,null,null,0,0,0]
[14,"2021-09-14","сен.2021",null,null,null,null,null,null,null,null,null,null,null,null,null,null,null,null,null,null,null,null,null,null,null,null,null,null,null,null,null,null,null,null,null,null,0,0,0]
[15,"2021-09-15","сен.2021",null,null,null,null,null,null,null,null,null,null,null,null,null,null,null,null,null,null,null,null,null,null,null,null,null,null,null,null,null,null,null,null,null,null,0,0,0]
[16,"2021-09-16","сен.2021",null,null,null,null,null,null,null,null,null,null,null,null,null,null,null,null,null,null,null,null,null,null,null,null,null,null,null,null,null,null,null,null,null,null,0,0,0]
[17,"2021-09-17","сен.2021",null,null,null,null,null,null,null,null,null,null,null,null,null,null,null,null,null,null,null,null,null,null,null,null,null,null,null,null,null,null,null,null,null,null,0,0,0]
[18,"2021-09-18","сен.2021",null,null,null,null,null,null,null,null,null,null,null,null,null,null,null,null,null,null,null,null,null,null,null,null,null,null,null,null,null,null,null,null,null,null,0,0,0]
[19,"2021-09-19","сен.2021",null,null,null,null,null,null,null,null,null,null,null,null,null,null,null,null,null,null,null,null,null,null,null,null,null,null,null,null,null,null,null,null,null,null,0,0,0]
[20,"2021-09-20","сен.2021",null,null,null,null,null,null,null,null,null,null,null,null,null,null,null,null,null,null,null,null,null,null,null,null,null,null,null,null,null,null,null,null,null,null,0,0,0]
[21,"2021-09-21","сен.2021",null,null,null,null,null,null,null,null,null,null,null,null,null,null,null,null,null,null,null,null,null,null,null,null,null,null,null,null,null,null,null,null,null,null,0,0,0]
[22,"2021-09-22","сен.2021",null,null,null,null,null,null,null,null,null,null,null,null,null,null,null,null,null,null,null,null,null,null,null,null,null,null,null,null,null,null,null,null,null,null,0,0,0]
[23,"2021-09-23","сен.2021",null,null,null,null,null,null,null,null,null,null,null,null,null,null,null,null,null,null,null,null,null,null,null,null,null,null,null,null,null,null,null,null,null,null,0,0,0]
[24,"2021-09-24","сен.2021",null,null,null,null,null,null,null,null,null,null,null,null,null,null,null,null,null,null,null,null,null,null,null,null,null,null,null,null,null,null,null,null,null,null,0,0,0]
[25,"2021-09-25","сен.2021",null,null,null,null,null,null,null,null,null,null,null,null,null,null,null,null,null,null,null,null,null,null,null,null,null,null,null,null,null,null,null,null,null,null,0,0,0]
[26,"2021-09-26","сен.2021",null,null,null,null,null,null,null,null,null,null,null,null,null,null,null,null,null,null,null,null,null,null,null,null,null,null,null,null,null,null,null,null,null,null,0,0,0]
[27,"2021-09-27","сен.2021",null,null,null,null,null,null,null,null,null,null,null,null,null,null,null,null,null,null,null,null,null,null,null,null,null,null,null,null,null,null,null,null,null,null,0,0,0]
[28,"2021-09-28","сен.2021",null,null,null,null,null,null,null,null,null,null,null,null,null,null,null,null,null,null,null,null,null,null,null,null,null,null,null,null,null,null,null,null,null,null,0,0,0]
[29,"2021-09-29","сен.2021",null,null,null,null,null,null,null,null,null,null,null,null,null,null,null,null,null,null,null,null,null,null,null,null,null,null,null,null,null,null,null,null,null,null,0,0,0]
[30,"2021-09-30","сен.2021",null,null,null,null,null,null,null,null,null,null,null,null,null,null,null,null,null,null,null,null,null,null,null,null,null,null,null,null,null,null,null,null,null,null,0,0,0]
[31,"2021-10-01","окт.2021",null,null," -",null,null,null,null,null,null,null,null,null,null,null,null,null,null,null,null,null,null,null,null,null,null,null,null,null,null,null,null,null,null,null,0,0,0]
[32,"2021-10-02","окт.2021",null,null," -",null,null,null,null,null,null,null,null,null,null,null,null,null,null,null,null,null,null,null,null,null,null,null,null,null,null,null,null,null,null,null,0,0,0]
[33,"2021-10-03","окт.2021",null,null," -",null,null,null,null,null,null,null,null,null,null,null,null,null,null,null,null,null,null,null,null,null,null,null,null,null,null,null,null,null,null,null,0,0,0]
[34,"2021-10-04","окт.2021",null,null," -",null,null,null,null,null,null,null,null,null,null,null,null,null,null,null,null,null,null,null,null,null,null,null,null,null,null,null,null,null,null,null,0,0,0]
[35,"2021-10-05","окт.2021",null,null," -",null,null,null,null,null,null,null,null,null,null,null,null,null,null,null,null,null,null,null,null,null,null,null,null,null,null,null,null,null,null,null,0,0,0]
[36,"2021-10-06","окт.2021",null,null," -",null,null,null,null,null,null,null,null,null,null,null,null,null,null,null,null,null,null,null,null,null,null,null,null,null,null,null,null,null,null,null,0,0,0]
[37,"2021-10-07","окт.2021",null,null," -",null,null,null,null,null,null,null,null,null,null,null,null,null,null,null,null,null,null,null,null,null,null,null,null,null,null,null,null,null,null,null,0,0,0]
[38,"2021-10-08","окт.2021",null,null," -",null,null,null,null,null,null,null,null,null,null,null,null,null,null,null,null,null,null,null,null,null,null,null,null,null,null,null,null,null,null,null,0,0,0]
[39,"2021-10-09","окт.2021",null,null," -",null,null,null,null,null,null,null,null,null,null,null,null,null,null,null,null,null,null,null,null,null,null,null,null,null,null,null,null,null,null,null,0,0,0]
[40,"2021-10-10","окт.2021",null,null," -",null,null,null,null,null,null,null,null,null,null,null,null,null,null,null,null,null,null,null,null,null,null,null,null,null,null,null,null,null,null,null,0,0,0]
[41,"2021-10-11","окт.2021",null,null," -",null,null,null,null,null,null,null,null,null,null,null,null,null,null,null,null,null,null,null,null,null,null,null,null,null,null,null,null,null,null,null,0,0,0]
[42,"2021-10-12","окт.2021",null,null," -",null,null,null,null,null,null,null,null,null,null,null,null,null,null,null,null,null,null,null,null,null,null,null,null,null,null,null,null,null,null,null,0,0,0]
[43,"2021-10-13","окт.2021",null,null," -",null,null,null,null,null,null,null,null,null,null,null,null,null,null,null,null,null,null,null,null,null,null,null,null,null,null,null,null,null,null,null,0,0,0]
[44,"2021-10-14","окт.2021",null,null," -",null,null,null,null,null,null,null,null,null,null,null,null,null,null,null,null,null,null,null,null,null,null,null,null,null,null,null,null,null,null,null,0,0,0]
[45,"2021-10-15","окт.2021",null,null," -",null,null,null,null,null,null,null,null,null,null,null,null,null,null,null,null,null,null,null,null,null,null,null,null,null,null,null,null,null,null,null,0,0,0]
[46,"2021-10-16","окт.2021",null,null," -",null,null,null,null,null,null,null,null,null,null,null,null,null,null,null,null,null,null,null,null,null,null,null,null,null,null,null,null,null,null,null,0,0,0]
[47,"2021-10-17","окт.2021",null,null," -",null,null,null,null,null,null,null,null,null,null,null,null,null,null,null,null,null,null,null,null,null,null,null,null,null,null,null,null,null,null,null,0,0,0]
[48,"2021-10-18","окт.2021",null,null," -",null,null,null,null,null,null,null,null,null,null,null,null,null,null,null,null,null,null,null,null,null,null,null,null,null,null,null,null,null,null,null,0,0,0]
[49,"2021-10-19","окт.2021",null,null," -",null,null,null,null,null,null,null,null,null,null,null,null,null,null,null,null,null,null,null,null,null,null,null,null,null,null,null,null,null,null,null,0,0,0]
[50,"2021-10-20","окт.2021",null,null," -",null,null,null,null,null,null,null,null,null,null,null,null,null,null,null,null,null,null,null,null,null,null,null,null,null,null,null,null,null,null,null,0,0,0]
[51,"2021-10-21","окт.2021",null,null," -",null,null,null,null,null,null,null,null,null,null,null,null,null,null,null,null,null,null,null,null,null,null,null,null,null,null,null,null,null,null,null,0,0,0]
[52,"2021-10-22","окт.2021",null,null," -",null,null,null,null,null,null,null,null,null,null,null,null,null,null,null,null,null,null,null,null,null,null,null,null,null,null,null,null,null,null,null,0,0,0]
[53,"2021-10-23","окт.2021",null,null," -",null,null,null,null,null,null,null,null,null,null,null,null,null,null,null,null,null,null,null,null,null,null,null,null,null,null,null,null,null,null,null,0,0,0]
[54,"2021-10-24","окт.2021",null,null," -",null,null,null,null,null,null,null,null,null,null,null,null,null,null,null,null,null,null,null,null,null,null,null,null,null,null,null,null,null,null,null,0,0,0]
[55,"2021-10-25","окт.2021",null,null," -",null,null,null,null,null,null,null,null,null,null,null,null,null,null,null,null,null,null,null,null,null,null,null,null,null,null,null,null,null,null,null,0,0,0]
[56,"2021-10-26","окт.2021",null,null," -",null,null,null,null,null,null,null,null,null,null,null,null,null,null,null,null,null,null,null,null,null,null,null,null,null,null,null,null,null,null,null,0,0,0]
[57,"2021-10-27","окт.2021",null,null," -",null,null,null,null,null,null,null,null,null,null,null,null,null,null,null,null,null,null,null,null,null,null,null,null,null,null,null,null,null,null,null,0,0,0]
[58,"2021-10-28","окт.2021",null,null," -",null,null,null,null,null,null,null,null,null,null,null,null,null,null,null,null,null,null,null,null,null,null,null,null,null,null,null,null,null,null,null,0,0,0]
[59,"2021-10-29","окт.2021",null,null," -",null,null,null,null,null,null,null,null,null,null,null,null,null,null,null,null,null,null,null,null,null,null,null,null,null,null,null,null,null,null,null,0,0,0]
[60,"2021-10-30","окт.2021",null,null," -",null,null,null,null,null,null,null,null,null,null,null,null,null,null,null,null,null,null,null,null,null,null,null,null,null,null,null,null,null,null,null,0,0,0]
[61,"2021-10-31","окт.2021",null,null," -",null,null,null,null,null,null,null,null,null,null,null,null,null,null,null,null,null,null,null,null,null,null,null,null,null,null,null,null,null,null,null,0,0,0]
[62,"2021-11-01","ноя.2021",null,null," -",null,null,null,null,null,null,null,null,null,null,null,null,null,null,null,null,null,null,null,null,null,null,null,null,null,null,null,null,null,null,null,0,0,0]
[63,"2021-11-02","ноя.2021",null,null," -",null,null,null,null,null,null,null,null,null,null,null,null,null,null,null,null,null,null,null,null,null,null,null,null,null,null,null,null,null,null,null,0,0,0]
[64,"2021-11-03","ноя.2021",null,null," -",null,null,null,null,null,null,null,null,null,null,null,null,null,null,null,null,null,null,null,null,null,null,null,null,null,null,null,null,null,null,null,0,0,0]
[65,"2021-11-04","ноя.2021",null,null," -",null,null,null,null,null,null,null,null,null,null,null,null,null,null,null,null,null,null,null,null,null,null,null,null,null,null,null,null,null,null,null,0,0,0]
[66,"2021-11-05",{"$f":"TEXT(B70,\"МММ.ГГГГ\")","v":"ноя.2021"},null,null," -",null,null,null,null,null,null,null,null,null,null,null,null,null,null,null,null,null,null,null,null,null,null,null,null,null,null,null,null,null,null,null,{"$f":"M70+O70+Q70+S70+U70+W70+Y70+AA70+AC70+AE70+AG70+AI70","v":0},{"$f":"N70+P70+R70+T70+V70+X70+Z70+AB70+AD70+AF70+AH70+AJ70+AK70","v":0},{"$f":"AL70-AM70","v":0}]
[67,"2021-11-06","ноя.2021",null,null," -",null,null,null,null,null,null,null,null,null,null,null,null,null,null,null,null,null,null,null,null,null,null,null,null,null,null,null,null,null,null,null,0,0,0]
[68,"2021-11-07","ноя.2021",null,null," -",null,null,null,null,null,null,null,null,null,null,null,null,null,null,null,null,null,null,null,null,null,null,null,null,null,null,null,null,null,null,null,0,0,0]
[69,"2021-11-08","ноя.2021",null,null," -",null,null,null,null,null,null,null,null,null,null,null,null,null,null,null,null,null,null,null,null,null,null,null,null,null,null,null,null,null,null,null,0,0,0]
[70,"2021-11-09","ноя.2021",null,null," -",null,null,null,null,null,null,null,null,null,null,null,null,null,null,null,null,null,null,null,null,null,null,null,null,null,null,null,null,null,null,null,0,0,0]
[71,"2021-11-10","ноя.2021",null,null," -",null,null,null,null,null,null,null,null,null,null,null,null,null,null,null,null,null,null,null,null,null,null,null,null,null,null,null,null,null,null,null,0,0,0]
[72,"2021-11-11","ноя.2021",null,null," -",null,null,null,null,null,null,null,null,null,null,null,null,null,null,null,null,null,null,null,null,null,null,null,null,null,null,null,null,null,null,null,0,0,0]
[73,"2021-11-12","ноя.2021",null,null," -",null,null,null,null,null,null,null,null,null,null,null,null,null,null,null,null,null,null,null,null,null,null,null,null,null,null,null,null,null,null,null,0,0,0]
[74,"2021-11-13","ноя.2021",null,null," -",null,null,null,null,null,null,null,null,null,null,null,null,null,null,null,null,null,null,null,null,null,null,null,null,null,null,null,null,null,null,null,0,0,0]
[75,"2021-11-14","ноя.2021",null,null," -",null,null,null,null,null,null,null,null,null,null,null,null,null,null,null,null,null,null,null,null,null,null,null,null,null,null,null,null,null,null,null,0,0,0]
[76,"2021-11-15","ноя.2021",null,null," -",null,null,null,null,null,null,null,null,null,null,null,null,null,null,null,null,null,null,null,null,null,null,null,null,null,null,null,null,null,null,null,0,0,0]
[77,"2021-11-16","ноя.2021",null,null," -",null,null,null,null,null,null,null,null,null,null,null,null,null,null,null,null,null,null,null,null,null,null,null,null,null,null,null,null,null,null,null,0,0,0]
[78,"2021-11-17","ноя.2021",null,null," -",null,null,null,null,null,null,null,null,null,null,null,null,null,null,null,null,null,null,null,null,null,null,null,null,null,null,null,null,null,null,null,0,0,0]
[79,"2021-11-18","ноя.2021",null,null," -",null,null,null,null,null,null,null,null,null,null,null,null,null,null,null,null,null,null,null,null,null,null,null,null,null,null,null,null,null,null,null,0,0,0]
[80,"2021-11-19","ноя.2021",null,null," -",null,null,null,null,null,null,null,null,null,null,null,null,null,null,null,null,null,null,null,null,null,null,null,null,null,null,null,null,null,null,null,0,0,0]
[81,"2021-11-20","ноя.2021",null,null," -",null,null,null,null,null,null,null,null,null,null,null,null,null,null,null,null,null,null,null,null,null,null,null,null,null,null,null,null,null,null,null,0,0,0]
[82,"2021-11-21","ноя.2021",null,null," -",null,null,null,null,null,null,null,null,null,null,null,null,null,null,null,null,null,null,null,null,null,null,null,null,null,null,null,null,null,null,null,0,0,0]
[83,"2021-11-22","ноя.2021",null,null," -",null,null,null,null,null,null,null,null,null,null,null,null,null,null,null,null,null,null,null,null,null,null,null,null,null,null,null,null,null,null,null,0,0,0]
[84,"2021-11-23","ноя.2021",null,null," -",null,null,null,null,null,null,null,null,null,null,null,null,null,null,null,null,null,null,null,null,null,null,null,null,null,null,null,null,null,null,null,0,0,0]
[85,"2021-11-24","ноя.2021",null,null," -",null,null,null,null,null,null,null,null,null,null,null,null,null,null,null,null,null,null,null,null,null,null,null,null,null,null,null,null,null,null,null,0,0,0]
[86,"2021-11-25","ноя.2021",null,null," -",null,null,null,null,null,null,null,null,null,null,null,null,null,null,null,null,null,null,null,null,null,null,null,null,null,null,null,null,null,null,null,0,0,0]
[87,"2021-11-26","ноя.2021",null,null," -",null,null,null,null,null,null,null,null,null,null,null,null,null,null,null,null,null,null,null,null,null,null,null,null,null,null,null,null,null,null,null,0,0,0]
[88,"2021-11-27","ноя.2021",null,null," -",null,null,null,null,null,null,null,null,null,null,null,null,null,null,null,null,null,null,null,null,null,null,null,null,null,null,null,null,null,null,null,0,0,0]
[89,"2021-11-28","ноя.2021",null,null," -",null,null,null,null,null,null,null,null,null,null,null,null,null,null,null,null,null,null,null,null,null,null,null,null,null,null,null,null,null,null,null,0,0,0]
[90,"2021-11-29","ноя.2021",null,null," -",null,null,null,null,null,null,null,null,null,null,null,null,null,null,null,null,null,null,null,null,null,null,null,null,null,null,null,null,null,null,null,0,0,0]
[91,"2021-11-30","ноя.2021",null,null," -",null,null,null,null,null,null,null,null,null,null,null,null,null,null,null,null,null,null,null,null,null,null,null,null,null,null,null,null,null,null,null,0,0,0]
[92,"2021-12-01","дек.2021",null,null," -",null,null,null,null,null,null,null,null,null,null,null,null,null,null,null,null,null,null,null,null,null,null,null,null,null,null,null,null,null,null,null,0,0,0]
[93,"2021-12-02","дек.2021",null,null," -",null,null,null,null,null,null,null,null,null,null,null,null,null,null,null,null,null,null,null,null,null,null,null,null,null,null,null,null,null,null,null,0,0,0]
[94,"2021-12-03","дек.2021",null,null," -",null,null,null,null,null,null,null,null,null,null,null,null,null,null,null,null,null,null,null,null,null,null,null,null,null,null,null,null,null,null,null,0,0,0]
[95,"2021-12-04","дек.2021",null,null," -",null,null,null,null,null,null,null,null,null,null,null,null,null,null,null,null,null,null,null,null,null,null,null,null,null,null,null,null,null,null,null,0,0,0]
[96,"2021-12-05","дек.2021",null,null," -",null,null,null,null,null,null,null,null,null,null,null,null,null,null,null,null,null,null,null,null,null,null,null,null,null,null,null,null,null,null,null,0,0,0]
[97,"2021-12-06","дек.2021",null,null," -",null,null,null,null,null,null,null,null,null,null,null,null,null,null,null,null,null,null,null,null,null,null,null,null,null,null,null,null,null,null,null,0,0,0]
[98,"2021-12-07","дек.2021",null,null," -",null,null,null,null,null,null,null,null,null,null,null,null,null,null,null,null,null,null,null,null,null,null,null,null,null,null,null,null,null,null,null,0,0,0]
[99,"2021-12-08","дек.2021",null,null," -",null,null,null,null,null,null,null,null,null,null,null,null,null,null,null,null,null,null,null,null,null,null,null,null,null,null,null,null,null,null,null,0,0,0]
[100,"2021-12-09","дек.2021",null,null," -",null,null,null,null,null,null,null,null,null,null,null,null,null,null,null,null,null,null,null,null,null,null,null,null,null,null,null,null,null,null,null,0,0,0]
[101,"2021-12-10","дек.2021",null,null," -",null,null,null,null,null,null,null,null,null,null,null,null,null,null,null,null,null,null,null,null,null,null,null,null,null,null,null,null,null,null,null,0,0,0]
[102,"2021-12-11","дек.2021",null,null," -",null,null,null,null,null,null,null,null,null,null,null,null,null,null,null,null,null,null,null,null,null,null,null,null,null,null,null,null,null,null,null,0,0,0]
[103,"2021-12-12","дек.2021",null,null," -",null,null,null,null,null,null,null,null,null,null,null,null,null,null,null,null,null,null,null,null,null,null,null,null,null,null,null,null,null,null,null,0,0,0]
[104,"2021-12-13","дек.2021",null,null," -",null,null,null,null,null,null,null,null,null,null,null,null,null,null,null,null,null,null,null,null,null,null,null,null,null,null,null,null,null,null,null,0,0,0]
[105,"2021-12-14","дек.2021",null,null," -",null,null,null,null,null,null,null,null,null,null,null,null,null,null,null,null,null,null,null,null,null,null,null,null,null,null,null,null,null,null,null,0,0,0]
[106,"2021-12-15","дек.2021",null,null," -",null,null,null,null,null,null,null,null,null,null,null,null,null,null,null,null,null,null,null,null,null,null,null,null,null,null,null,null,null,null,null,0,0,0]
[107,"2021-12-16","дек.2021",null,null," -",null,null,null,null,null,null,null,null,null,null,null,null,null,null,null,null,null,null,null,null,null,null,null,null,null,null,null,null,null,null,null,0,0,0]
[108,"2021-12-17","дек.2021",null,null," -",null,null,null,null,null,null,null,null,null,null,null,null,null,null,null,null,null,null,null,null,null,null,null,null,null,null,null,null,null,null,null,0,0,0]
[109,"2021-12-18","дек.2021",null,null," -",null,null,null,null,null,null,null,null,null,null,null,null,null,null,null,null,null,null,null,null,null,null,null,null,null,null,null,null,null,null,null,0,0,0]
[110,"2021-12-19","дек.2021",null,null," -",null,null,null,null,null,null,null,null,null,null,null,null,null,null,null,null,null,null,null,null,null,null,null,null,null,null,null,null,null,null,null,0,0,0]
[111,"2021-12-20","дек.2021",null,null," -",null,null,null,null,null,null,null,null,null,null,null,null,null,null,null,null,null,null,null,null,null,null,null,null,null,null,null,null,null,null,null,0,0,0]
[112,"2021-12-21","дек.2021",null,null," -",null,null,null,null,null,null,null,null,null,null,null,null,null,null,null,null,null,null,null,null,null,null,null,null,null,null,null,null,null,null,null,0,0,0]
[113,"2021-12-22","дек.2021",null,null," -",null,null,null,null,null,null,null,null,null,null,null,null,null,null,null,null,null,null,null,null,null,null,null,null,null,null,null,null,null,null,null,0,0,0]
[114,"2021-12-23","дек.2021",null,null," -",null,null,null,null,null,null,null,null,null,null,null,null,null,null,null,null,null,null,null,null,null,null,null,null,null,null,null,null,null,null,null,0,0,0]
[115,"2021-12-24","дек.2021",null,null," -",null,null,null,null,null,null,null,null,null,null,null,null,null,null,null,null,null,null,null,null,null,null,null,null,null,null,null,null,null,null,null,0,0,0]
[116,"2021-12-25","дек.2021",null,null," -",null,null,null,null,null,null,null,null,null,null,null,null,null,null,null,null,null,null,null,null,null,null,null,null,null,null,null,null,null,null,null,0,0,0]
[117,"2021-12-26","дек.2021",null,null," -",null,null,null,null,null,null,null,null,null,null,null,null,null,null,null,null,null,null,null,null,null,null,null,null,null,null,null,null,null,null,null,0,0,0]
[118,"2021-12-27","дек.2021",null,null," -",null,null,null,null,null,null,null,null,null,null,null,null,null,null,null,null,null,null,null,null,null,null,null,null,null,null,null,null,null,null,null,0,0,0]
[119,"2021-12-28","дек.2021",null,null," -",null,null,null,null,null,null,null,null,null,null,null,null,null,null,null,null,null,null,null,null,null,null,null,null,null,null,null,null,null,null,null,0,0,0]
[120,"2021-12-29","дек.2021",null,null," -",null,null,null,null,null,null,null,null,null,null,null,null,null,null,null,null,null,null,null,null,null,null,null,null,null,null,null,null,null,null,null,0,0,0]
[121,"2021-12-30","дек.2021",null,null," -",null,null,null,null,null,null,null,null,null,null,null,null,null,null,null,null,null,null,null,null,null,null,null,null,null,null,null,null,null,null,null,0,0,0]
[122,"2021-12-31","дек.2021",null,null," -",null,null,null,null,null,null,null,null,null,null,null,null,null,null,null,null,null,null,null,null,null,null,null,null,null,null,null,null,null,null,null,0,0,0]
[123,"2022-01-01","янв.2022",null,null," -",null,null,null,null,null,null,null,null,null,null,null,null,null,null,null,null,null,null,null,null,null,null,null,null,null,null,null,null,null,null,null,0,0,0]
[124,"2022-01-02","янв.2022",null,null," -",null,null,null,null,null,null,null,null,null,null,null,null,null,null,null,null,null,null,null,null,null,null,null,null,null,null,null,null,null,null,null,0,0,0]
[125,"2022-01-03","янв.2022",null,null," -",null,null,null,null,null,null,null,null,null,null,null,null,null,null,null,null,null,null,null,null,null,null,null,null,null,null,null,null,null,null,null,0,0,0]
[126,"2022-01-04","янв.2022",null,null," -",null,null,null,null,null,null,null,null,null,null,null,null,null,null,null,null,null,null,null,null,null,null,null,null,null,null,null,null,null,null,null,0,0,0]
[127,"2022-01-05","янв.2022",null,null," -",null,null,null,null,null,null,null,null,null,null,null,null,null,null,null,null,null,null,null,null,null,null,null,null,null,null,null,null,null,null,null,0,0,0]
[128,"2022-01-06","янв.2022",null,null," -",null,null,null,null,null,null,null,null,null,null,null,null,null,null,null,null,null,null,null,null,null,null,null,null,null,null,null,null,null,null,null,0,0,0]
[129,"2022-01-07","янв.2022",null,null," -",null,null,null,null,null,null,null,null,null,null,null,null,null,null,null,null,null,null,null,null,null,null,null,null,null,null,null,null,null,null,null,0,0,0]
[130,"2022-01-08",{"$f":"TEXT(B134,\"МММ.ГГГГ\")","v":"янв.2022"},null,null," -",null,null,null,null,null,null,null,null,null,null,null,null,null,null,null,null,null,null,null,null,null,null,null,null,null,null,null,null,null,null,null,{"$f":"M134+O134+Q134+S134+U134+W134+Y134+AA134+AC134+AE134+AG134+AI134","v":0},{"$f":"N134+P134+R134+T134+V134+X134+Z134+AB134+AD134+AF134+AH134+AJ134+AK134","v":0},{"$f":"AL134-AM134","v":0}]
[131,"2022-01-09","янв.2022",null,null," -",null,null,null,null,null,null,null,null,null,null,null,null,null,null,null,null,null,null,null,null,null,null,null,null,null,null,null,null,null,null,null,0,0,0]
[132,"2022-01-10","янв.2022",null,null," -",null,null,null,null,null,null,null,null,null,null,null,null,null,null,null,null,null,null,null,null,null,null,null,null,null,null,null,null,null,null,null,0,0,0]
[133,"2022-01-11","янв.2022",null,null," -",null,null,null,null,null,null,null,null,null,null,null,null,null,null,null,null,null,null,null,null,null,null,null,null,null,null,null,null,null,null,null,0,0,0]
[134,"2022-01-12","янв.2022",null,null," -",null,null,null,null,null,null,null,null,null,null,null,null,null,null,null,null,null,null,null,null,null,null,null,null,null,null,null,null,null,null,null,0,0,0]
[135,"2022-01-13","янв.2022",null,null," -",null,null,null,null,null,null,null,null,null,null,null,null,null,null,null,null,null,null,null,null,null,null,null,null,null,null,null,null,null,null,null,0,0,0]
[136,"2022-01-14","янв.2022",null,null," -",null,null,null,null,null,null,null,null,null,null,null,null,null,null,null,null,null,null,null,null,null,null,null,null,null,null,null,null,null,null,null,0,0,0]
[137,"2022-01-15","янв.2022",null,null," -",null,null,null,null,null,null,null,null,null,null,null,null,null,null,null,null,null,null,null,null,null,null,null,null,null,null,null,null,null,null,null,0,0,0]
[138,"2022-01-16","янв.2022",null,null," -",null,null,null,null,null,null,null,null,null,null,null,null,null,null,null,null,null,null,null,null,null,null,null,null,null,null,null,null,null,null,null,0,0,0]
[139,"2022-01-17","янв.2022",null,null," -",null,null,null,null,null,null,null,null,null,null,null,null,null,null,null,null,null,null,null,null,null,null,null,null,null,null,null,null,null,null,null,0,0,0]
[140,"2022-01-18","янв.2022",null,null," -",null,null,null,null,null,null,null,null,null,null,null,null,null,null,null,null,null,null,null,null,null,null,null,null,null,null,null,null,null,null,null,0,0,0]
[141,"2022-01-19","янв.2022",null,null," -",null,null,null,null,null,null,null,null,null,null,null,null,null,null,null,null,null,null,null,null,null,null,null,null,null,null,null,null,null,null,null,0,0,0]
[142,"2022-01-20","янв.2022",null,null," -",null,null,null,null,null,null,null,null,null,null,null,null,null,null,null,null,null,null,null,null,null,null,null,null,null,null,null,null,null,null,null,0,0,0]
[143,"2022-01-21","янв.2022",null,null," -",null,null,null,null,null,null,null,null,null,null,null,null,null,null,null,null,null,null,null,null,null,null,null,null,null,null,null,null,null,null,null,0,0,0]
[144,"2022-01-22","янв.2022",null,null," -",null,null,null,null,null,null,null,null,null,null,null,null,null,null,null,null,null,null,null,null,null,null,null,null,null,null,null,null,null,null,null,0,0,0]
[145,"2022-01-23","янв.2022",null,null," -",null,null,null,null,null,null,null,null,null,null,null,null,null,null,null,null,null,null,null,null,null,null,null,null,null,null,null,null,null,null,null,0,0,0]
[146,"2022-01-24","янв.2022",null,null," -",null,null,null,null,null,null,null,null,null,null,null,null,null,null,null,null,null,null,null,null,null,null,null,null,null,null,null,null,null,null,null,0,0,0]
[147,"2022-01-25","янв.2022",null,null," -",null,null,null,null,null,null,null,null,null,null,null,null,null,null,null,null,null,null,null,null,null,null,null,null,null,null,null,null,null,null,null,0,0,0]
[148,"2022-01-26","янв.2022",null,null," -",null,null,null,null,null,null,null,null,null,null,null,null,null,null,null,null,null,null,null,null,null,null,null,null,null,null,null,null,null,null,null,0,0,0]
[149,"2022-01-27","янв.2022",null,null," -",null,null,null,null,null,null,null,null,null,null,null,null,null,null,null,null,null,null,null,null,null,null,null,null,null,null,null,null,null,null,null,0,0,0]
[150,"2022-01-28","янв.2022",null,null," -",null,null,null,null,null,null,null,null,null,null,null,null,null,null,null,null,null,null,null,null,null,null,null,null,null,null,null,null,null,null,null,0,0,0]
[151,"2022-01-29","янв.2022",null,null," -",null,null,null,null,null,null,null,null,null,null,null,null,null,null,null,null,null,null,null,null,null,null,null,null,null,null,null,null,null,null,null,0,0,0]
[152,"2022-01-30","янв.2022",null,null," -",null,null,null,null,null,null,null,null,null,null,null,null,null,null,null,null,null,null,null,null,null,null,null,null,null,null,null,null,null,null,null,0,0,0]
[153,"2022-01-31","янв.2022",null,null," -",null,null,null,null,null,null,null,null,null,null,null,null,null,null,null,null,null,null,null,null,null,null,null,null,null,null,null,null,null,null,null,0,0,0]
[154,"2022-02-01","фев.2022",null,null," -",null,null,null,null,null,null,null,null,null,null,null,null,null,null,null,null,null,null,null,null,null,null,null,null,null,null,null,null,null,null,null,0,0,0]
[155,"2022-02-02","фев.2022",null,null," -",null,null,null,null,null,null,null,null,null,null,null,null,null,null,null,null,null,null,null,null,null,null,null,null,null,null,null,null,null,null,null,0,0,0]
[156,"2022-02-03","фев.2022",null,null," -",null,null,null,null,null,null,null,null,null,null,null,null,null,null,null,null,null,null,null,null,null,null,null,null,null,null,null,null,null,null,null,0,0,0]
[157,"2022-02-04","фев.2022",null,null," -",null,null,null,null,null,null,null,null,null,null,null,null,null,null,null,null,null,null,null,null,null,null,null,null,null,null,null,null,null,null,null,0,0,0]
[158,"2022-02-05","фев.2022",null,null," -",null,null,null,null,null,null,null,null,null,null,null,null,null,null,null,null,null,null,null,null,null,null,null,null,null,null,null,null,null,null,null,0,0,0]
[159,"2022-02-06","фев.2022",null,null," -",null,null,null,null,null,null,null,null,null,null,null,null,null,null,null,null,null,null,null,null,null,null,null,null,null,null,null,null,null,null,null,0,0,0]
[160,"2022-02-07","фев.2022",null,null," -",null,null,null,null,null,null,null,null,null,null,null,null,null,null,null,null,null,null,null,null,null,null,null,null,null,null,null,null,null,null,null,0,0,0]
[161,"2022-02-08","фев.2022",null,null," -",null,null,null,null,null,null,null,null,null,null,null,null,null,null,null,null,null,null,null,null,null,null,null,null,null,null,null,null,null,null,null,0,0,0]
[162,"2022-02-09","фев.2022",null,null," -",null,null,null,null,null,null,null,null,null,null,null,null,null,null,null,null,null,null,null,null,null,null,null,null,null,null,null,null,null,null,null,0,0,0]
[163,"2022-02-10","фев.2022",null,null," -",null,null,null,null,null,null,null,null,null,null,null,null,null,null,null,null,null,null,null,null,null,null,null,null,null,null,null,null,null,null,null,0,0,0]
[164,"2022-02-11","фев.2022",null,null," -",null,null,null,null,null,null,null,null,null,null,null,null,null,null,null,null,null,null,null,null,null,null,null,null,null,null,null,null,null,null,null,0,0,0]
[165,"2022-02-12","фев.2022",null,null," -",null,null,null,null,null,null,null,null,null,null,null,null,null,null,null,null,null,null,null,null,null,null,null,null,null,null,null,null,null,null,null,0,0,0]
[166,"2022-02-13","фев.2022",null,null," -",null,null,null,null,null,null,null,null,null,null,null,null,null,null,null,null,null,null,null,null,null,null,null,null,null,null,null,null,null,null,null,0,0,0]
[167,"2022-02-14","фев.2022",null,null," -",null,null,null,null,null,null,null,null,null,null,null,null,null,null,null,null,null,null,null,null,null,null,null,null,null,null,null,null,null,null,null,0,0,0]
[168,"2022-02-15","фев.2022",null,null," -",null,null,null,null,null,null,null,null,null,null,null,null,null,null,null,null,null,null,null,null,null,null,null,null,null,null,null,null,null,null,null,0,0,0]
[169,"2022-02-16","фев.2022",null,null," -",null,null,null,null,null,null,null,null,null,null,null,null,null,null,null,null,null,null,null,null,null,null,null,null,null,null,null,null,null,null,null,0,0,0]
[170,"2022-02-17","фев.2022",null,null," -",null,null,null,null,null,null,null,null,null,null,null,null,null,null,null,null,null,null,null,null,null,null,null,null,null,null,null,null,null,null,null,0,0,0]
[171,"2022-02-18","фев.2022",null,null," -",null,null,null,null,null,null,null,null,null,null,null,null,null,null,null,null,null,null,null,null,null,null,null,null,null,null,null,null,null,null,null,0,0,0]
[172,"2022-02-19","фев.2022",null,null," -",null,null,null,null,null,null,null,null,null,null,null,null,null,null,null,null,null,null,null,null,null,null,null,null,null,null,null,null,null,null,null,0,0,0]
[173,"2022-02-20","фев.2022",null,null," -",null,null,null,null,null,null,null,null,null,null,null,null,null,null,null,null,null,null,null,null,null,null,null,null,null,null,null,null,null,null,null,0,0,0]
[174,"2022-02-21","фев.2022",null,null," -",null,null,null,null,null,null,null,null,null,null,null,null,null,null,null,null,null,null,null,null,null,null,null,null,null,null,null,null,null,null,null,0,0,0]
[175,"2022-02-22","фев.2022",null,null," -",null,null,null,null,null,null,null,null,null,null,null,null,null,null,null,null,null,null,null,null,null,null,null,null,null,null,null,null,null,null,null,0,0,0]
[176,"2022-02-23","фев.2022",null,null," -",null,null,null,null,null,null,null,null,null,null,null,null,null,null,null,null,null,null,null,null,null,null,null,null,null,null,null,null,null,null,null,0,0,0]
[177,"2022-02-24","фев.2022",null,null," -",null,null,null,null,null,null,null,null,null,null,null,null,null,null,null,null,null,null,null,null,null,null,null,null,null,null,null,null,null,null,null,0,0,0]
[178,"2022-02-25","фев.2022",null,null," -",null,null,null,null,null,null,null,null,null,null,null,null,null,null,null,null,null,null,null,null,null,null,null,null,null,null,null,null,null,null,null,0,0,0]
[179,"2022-02-26","фев.2022",null,null," -",null,null,null,null,null,null,null,null,null,null,null,null,null,null,null,null,null,null,null,null,null,null,null,null,null,null,null,null,null,null,null,0,0,0]
[180,"2022-02-27","фев.2022",null,null," -",null,null,null,null,null,null,null,null,null,null,null,null,null,null,null,null,null,null,null,null,null,null,null,null,null,null,null,null,null,null,null,0,0,0]
[181,"2022-02-28","фев.2022",null,null," -",null,null,null,null,null,null,null,null,null,null,null,null,null,null,null,null,null,null,null,null,null,null,null,null,null,null,null,null,null,null,null,0,0,0]
[182,"2022-03-01","мар.2022",null,null," -",null,null,null,null,null,null,null,null,null,null,null,null,null,null,null,null,null,null,null,null,null,null,null,null,null,null,null,null,null,null,null,0,0,0]
[183,"2022-03-02","мар.2022",null,null," -",null,null,null,null,null,null,null,null,null,null,null,null,null,null,null,null,null,null,null,null,null,null,null,null,null,null,null,null,null,null,null,0,0,0]
[184,"2022-03-03","мар.2022",null,null," -",null,null,null,null,null,null,null,null,null,null,null,null,null,null,null,null,null,null,null,null,null,null,null,null,null,null,null,null,null,null,null,0,0,0]
[185,"2022-03-04","мар.2022",null,null," -",null,null,null,null,null,null,null,null,null,null,null,null,null,null,null,null,null,null,null,null,null,null,null,null,null,null,null,null,null,null,null,0,0,0]
[186,"2022-03-05","мар.2022",null,null," -",null,null,null,null,null,null,null,null,null,null,null,null,null,null,null,null,null,null,null,null,null,null,null,null,null,null,null,null,null,null,null,0,0,0]
[187,"2022-03-06","мар.2022",null,null," -",null,null,null,null,null,null,null,null,null,null,null,null,null,null,null,null,null,null,null,null,null,null,null,null,null,null,null,null,null,null,null,0,0,0]
[188,"2022-03-07","мар.2022",null,null," -",null,null,null,null,null,null,null,null,null,null,null,null,null,null,null,null,null,null,null,null,null,null,null,null,null,null,null,null,null,null,null,0,0,0]
[189,"2022-03-08","мар.2022",null,null," -",null,null,null,null,null,null,null,null,null,null,null,null,null,null,null,null,null,null,null,null,null,null,null,null,null,null,null,null,null,null,null,0,0,0]
[190,"2022-03-09","мар.2022",null,null," -",null,null,null,null,null,null,null,null,null,null,null,null,null,null,null,null,null,null,null,null,null,null,null,null,null,null,null,null,null,null,null,0,0,0]
[191,"2022-03-10","мар.2022",null,null," -",null,null,null,null,null,null,null,null,null,null,null,null,null,null,null,null,null,null,null,null,null,null,null,null,null,null,null,null,null,null,null,0,0,0]
[192,"2022-03-11","мар.2022",null,null," -",null,null,null,null,null,null,null,null,null,null,null,null,null,null,null,null,null,null,null,null,null,null,null,null,null,null,null,null,null,null,null,0,0,0]
[193,"2022-03-12","мар.2022",null,null," -",null,null,null,null,null,null,null,null,null,null,null,null,null,null,null,null,null,null,null,null,null,null,null,null,null,null,null,null,null,null,null,0,0,0]
[194,"2022-03-13",{"$f":"TEXT(B198,\"МММ.ГГГГ\")","v":"мар.2022"},null,null," -",null,null,null,null,null,null,null,null,null,null,null,null,null,null,null,null,null,null,null,null,null,null,null,null,null,null,null,null,null,null,null,{"$f":"M198+O198+Q198+S198+U198+W198+Y198+AA198+AC198+AE198+AG198+AI198","v":0},{"$f":"N198+P198+R198+T198+V198+X198+Z198+AB198+AD198+AF198+AH198+AJ198+AK198","v":0},{"$f":"AL198-AM198","v":0}]
[195,"2022-03-14","мар.2022",null,null," -",null,null,null,null,null,null,null,null,null,null,null,null,null,null,null,null,null,null,null,null,null,null,null,null,null,null,null,null,null,null,null,0,0,0]
[196,"2022-03-15","мар.2022",null,null," -",null,null,null,null,null,null,null,null,null,null,null,null,null,null,null,null,null,null,null,null,null,null,null,null,null,null,null,null,null,null,null,0,0,0]
[197,"2022-03-16","мар.2022",null,null," -",null,null,null,null,null,null,null,null,null,null,null,null,null,null,null,null,null,null,null,null,null,null,null,null,null,null,null,null,null,null,null,0,0,0]
[198,"2022-03-17","мар.2022",null,null," -",null,null,null,null,null,null,null,null,null,null,null,null,null,null,null,null,null,null,null,null,null,null,null,null,null,null,null,null,null,null,null,0,0,0]
[199,"2022-03-18","мар.2022",null,null," -",null,null,null,null,null,null,null,null,null,null,null,null,null,null,null,null,null,null,null,null,null,null,null,null,null,null,null,null,null,null,null,0,0,0]
[200,"2022-03-19","мар.2022",null,null," -",null,null,null,null,null,null,null,null,null,null,null,null,null,null,null,null,null,null,null,null,null,null,null,null,null,null,null,null,null,null,null,0,0,0]
["Итого по материалам",null,null,null,null,null,null,null,null,null,null,null,{"$f":"SUM(M4:M204)","v":0},{"$f":"SUM(N4:N204)","v":0},{"$f":"SUM(O4:O204)","v":0},{"$f":"SUM(P4:P204)","v":0},{"$f":"SUM(Q4:Q204)","v":0},{"$f":"SUM(R4:R204)","v":0},{"$f":"SUM(S4:S204)","v":0},{"$f":"SUM(T4:T204)","v":0},{"$f":"SUM(U4:U204)","v":0},{"$f":"SUM(V4:V204)","v":0},{"$f":"SUM(W4:W204)","v":0},{"$f":"SUM(X4:X204)","v":0},{"$f":"SUM(Y4:Y204)","v":0},{"$f":"SUM(Z4:Z204)","v":0},{"$f":"SUM(AA4:AA204)","v":0},{"$f":"SUM(AB4:AB204)","v":0},{"$f":"SUM(AC4:AC204)","v":0},{"$f":"SUM(AD4:AD204)","v":0},{"$f":"SUM(AE4:AE204)","v":0},{"$f":"SUM(AF4:AF204)","v":0},{"$f":"SUM(AG4:AG204)","v":0},{"$f":"SUM(AH4:AH204)","v":0},{"$f":"SUM(AI4:AI204)","v":0},{"$f":"SUM(AJ4:AJ204)","v":0},{"$f":"SUM(AK4:AK204)","v":0},{"$f":"SUM(AL4:AL204)","v":0},{"$f":"SUM(AM4:AM204)","v":0},{"$f":"SUM(AN4:AN204)","v":0}]

{"sheet":"Списки","index":1,"n_rows":5,"n_cols":2,"rows_kept":5,"cut":false,"hidden":false,"merged":[]}
[null,"Статус заказа"]
[null," -"]
[null,"не приступали"]
[null,"в работе"]
[null,"завершен"]

{"sheet":"Задание-Предложение","index":2,"n_rows":0,"n_cols":0,"rows_kept":0,"cut":false,"hidden":false,"merged":[]}

{"sheet":"Лист1","index":3,"n_rows":93,"n_cols":7,"rows_kept":93,"cut":false,"hidden":true,"merged":[]}
[]
[null,null,null,"Не приступали",null,null,"2021-10-01"]
[null,null,null,"В работе",null,null,"2021-10-02"]
[null,null,null,"Завершен",null,null,"2021-10-03"]
[null,null,null,null,null,null,"2021-10-04"]
[null,null,null,null,null,null,"2021-10-05"]
[null,null,null,null,null,null,"2021-10-06"]
[null,null,null,null,null,null,"2021-10-07"]
[null,null,null,null,null,null,"2021-10-08"]
[null,null,null,null,null,null,"2021-10-09"]
[null,null,null,null,null,null,"2021-10-10"]
[null,null,null,null,null,null,"2021-10-11"]
[null,null,null,null,null,null,"2021-10-12"]
[null,null,null,null,null,null,"2021-10-13"]
[null,null,null,null,null,null,"2021-10-14"]
[null,null,null,null,null,null,"2021-10-15"]
[null,null,null,null,null,null,"2021-10-16"]
[null,null,null,null,null,null,"2021-10-17"]
[null,null,null,null,null,null,"2021-10-18"]
[null,null,null,null,null,null,"2021-10-19"]
[null,null,null,null,null,null,"2021-10-20"]
[null,null,null,null,null,null,"2021-10-21"]
[null,null,null,null,null,null,"2021-10-22"]
[null,null,null,null,null,null,"2021-10-23"]
[null,null,null,null,null,null,"2021-10-24"]
[null,null,null,null,null,null,"2021-10-25"]
[null,null,null,null,null,null,"2021-10-26"]
[null,null,null,null,null,null,"2021-10-27"]
[null,null,null,null,null,null,"2021-10-28"]
[null,null,null,null,null,null,"2021-10-29"]
[null,null,null,null,null,null,"2021-10-30"]
[null,null,null,null,null,null,"2021-10-31"]
[null,null,null,null,null,null,"2021-11-01"]
[null,null,null,null,null,null,"2021-11-02"]
[null,null,null,null,null,null,"2021-11-03"]
[null,null,null,null,null,null,"2021-11-04"]
[null,null,null,null,null,null,"2021-11-05"]
[null,null,null,null,null,null,"2021-11-06"]
[null,null,null,null,null,null,"2021-11-07"]
[null,null,null,null,null,null,"2021-11-08"]
[null,null,null,null,null,null,"2021-11-09"]
[null,null,null,null,null,null,"2021-11-10"]
[null,null,null,null,null,null,"2021-11-11"]
[null,null,null,null,null,null,"2021-11-12"]
[null,null,null,null,null,null,"2021-11-13"]
[null,null,null,null,null,null,"2021-11-14"]
[null,null,null,null,null,null,"2021-11-15"]
[null,null,null,null,null,null,"2021-11-16"]
[null,null,null,null,null,null,"2021-11-17"]
[null,null,null,null,null,null,"2021-11-18"]
[null,null,null,null,null,null,"2021-11-19"]
[null,null,null,null,null,null,"2021-11-20"]
[null,null,null,null,null,null,"2021-11-21"]
[null,null,null,null,null,null,"2021-11-22"]
[null,null,null,null,null,null,"2021-11-23"]
[null,null,null,null,null,null,"2021-11-24"]
[null,null,null,null,null,null,"2021-11-25"]
[null,null,null,null,null,null,"2021-11-26"]
[null,null,null,null,null,null,"2021-11-27"]
[null,null,null,null,null,null,"2021-11-28"]
[null,null,null,null,null,null,"2021-11-29"]
[null,null,null,null,null,null,"2021-11-30"]
[null,null,null,null,null,null,"2021-12-01"]
[null,null,null,null,null,null,"2021-12-02"]
[null,null,null,null,null,null,"2021-12-03"]
[null,null,null,null,null,null,"2021-12-04"]
[null,null,null,null,null,null,"2021-12-05"]
[null,null,null,null,null,null,"2021-12-06"]
[null,null,null,null,null,null,"2021-12-07"]
[null,null,null,null,null,null,"2021-12-08"]
[null,null,null,null,null,null,"2021-12-09"]
[null,null,null,null,null,null,"2021-12-10"]
[null,null,null,null,null,null,"2021-12-11"]
[null,null,null,null,null,null,"2021-12-12"]
[null,null,null,null,null,null,"2021-12-13"]
[null,null,null,null,null,null,"2021-12-14"]
[null,null,null,null,null,null,"2021-12-15"]
[null,null,null,null,null,null,"2021-12-16"]
[null,null,null,null,null,null,"2021-12-17"]
[null,null,null,null,null,null,"2021-12-18"]
[null,null,null,null,null,null,"2021-12-19"]
[null,null,null,null,null,null,"2021-12-20"]
[null,null,null,null,null,null,"2021-12-21"]
[null,null,null,null,null,null,"2021-12-22"]
[null,null,null,null,null,null,"2021-12-23"]
[null,null,null,null,null,null,"2021-12-24"]
[null,null,null,null,null,null,"2021-12-25"]
[null,null,null,null,null,null,"2021-12-26"]
[null,null,null,null,null,null,"2021-12-27"]
[null,null,null,null,null,null,"2021-12-28"]
[null,null,null,null,null,null,"2021-12-29"]
[null,null,null,null,null,null,"2021-12-30"]
[null,null,null,null,null,null,"2021-12-31"]